fUST/lending_fUST_20240815
["ID","MTS","AMOUNT","RATE_DAILY","PERIOD"]
[334999143,1723716697139,-500.0,0.00016986,2]
[334999144,1723716697149,-3994.14,0.00016986,2]
[334999145,1723716697159,-546.03,0.00016986,2]
[334999146,1723716697170,-653.84,0.00016986,2]
[334999147,1723716697179,-855.41,0.00016986,2]
[334999148,1723716697189,-1698.32,0.00016986,2]
[334999149,1723716697198,-500.0,0.00016986,2]
[334999150,1723716697208,-308.15631039,0.00016986,2]
[334999151,1723716697218,-865.22,0.00016986,2]
[334999152,1723716697228,-1671.37,0.00016986,2]
[334999153,1723716697238,-701.74,0.00016986,2]
[334999154,1723716697248,-1706.36,0.00016986,2]
[334999155,1723716697257,-556.69,0.00016986,2]
[334999156,1723716697268,-996.25,0.00016986,2]
[334999157,1723716697279,-500.0,0.00016986,2]
[334999158,1723716697289,-1331.16,0.00016986,2]
[334999159,1723716697299,-500.0,0.00016986,2]
[334999160,1723716697309,-521.14,0.00016986,2]
[334999161,1723716697319,-581.45,0.00016986,2]
[334999162,1723716697330,-1209.32,0.00016986,2]
[334999163,1723716697340,-1818.92,0.00016986,2]
[334999164,1723716697349,-500.0,0.00016986,2]
[334999165,1723716697360,-1100.1,0.00016986,2]
[334999166,1723716697371,-562.82,0.00016986,2]
[334999167,1723716697380,-2254.64,0.00016986,2]
[334999168,1723716697390,-1967.02,0.00016986,2]
[334999169,1723716697400,-988.01,0.00016986,2]
[334999170,1723716697411,-527.63,0.00016986,2]
[334999171,1723716697422,-927.26,0.00016986,2]
[334999172,1723716697431,-719.3,0.00016986,2]
[334999173,1723716697440,-572.43,0.00016986,2]
[334999174,1723716697450,-799.05,0.00016986,2]
[334999175,1723716697460,-581.88,0.00016986,2]
[334999176,1723716697470,-2164.18,0.00016986,2]
[334999177,1723716697480,-2006.92,0.00016986,2]
[334999178,1723716697491,-761.66,0.00016986,2]
[334999179,1723716697502,-2873.64,0.00016986,2]
[334999180,1723716697512,-500.0,0.00016986,2]
[334999181,1723716697522,-561.92,0.00016986,2]
[334999182,1723716697533,-7862.62,0.00016986,2]
[334999183,1723716697543,-281.05777706,0.00016986,2]
[334999184,1723716697553,-688.24,0.00016986,2]
[334999185,1723716697563,-500.0,0.00016986,2]
[334999186,1723716697573,-712.1,0.00016986,2]
[334999187,1723716697586,-2181.37,0.00016986,2]
[334999188,1723716697596,-527.87,0.00016986,2]
[334999189,1723716697605,-500.0,0.00016986,2]
[334999190,1723716697615,-500.0,0.00016986,2]
[334999191,1723716697625,-500.0,0.00016986,2]
[334999192,1723716697634,-1909.95,0.00016986,2]
[334999193,1723716697645,-747.02,0.00016986,2]
[334999194,1723716697657,-1074.32,0.00016986,2]
[334999195,1723716697667,-1120.97,0.00016986,2]
[334999196,1723716697676,-500.0,0.00016986,2]
[334999197,1723716697686,-844.17,0.00016986,2]
[334999198,1723716697697,-1067.37,0.00016986,2]
[334999199,1723716697707,-562.8,0.00016986,2]
[334999200,1723716697717,-658.27,0.00016986,2]
[334999201,1723716697727,-500.0,0.00016986,2]
[334999202,1723716697736,-1035.86,0.00016986,2]
[334999203,1723716697747,-1942.4,0.00016986,2]
[334999204,1723716697757,-580.84,0.00016986,2]
[334999205,1723716697767,-860.49,0.00016986,2]
[334999206,1723716697777,-948.67,0.00016986,2]
[334999207,1723716697787,-500.0,0.00016986,2]
[334999208,1723716697797,-500.0,0.00016986,2]
[334999209,1723716697807,-4530.48,0.00016986,2]
[334999210,1723716697819,-1310.27,0.00016986,2]
[334999211,1723716697830,-615.48,0.00016986,2]
[334999212,1723716697842,-1631.5,0.00016986,2]
[334999213,1723716697854,-504.55,0.00016986,2]
[334999214,1723716697864,-8000.61,0.00016986,2]
[334999215,1723716697874,-700.72,0.00016986,2]
[334999216,1723716697885,-500.0,0.00016986,2]
[334999217,1723716697895,-1156.31,0.00016986,2]
[334999218,1723716697905,-1318.64,0.00016986,2]
[334999219,1723716697917,-777.45,0.00016986,2]
[334999220,1723716697929,-2060.47,0.00016986,2]
[334999221,1723716697940,-1553.53,0.00016986,2]
[334999222,1723716697950,-2404.91,0.00016986,2]
[334999223,1723716697960,-853.54,0.00016986,2]
[334999224,1723716697970,-4995.59,0.00016986,2]
[334999225,1723716697981,-671.77,0.00016986,2]
[334999226,1723716698117,-1660.52,0.00016986,2]
[334999227,1723716698131,-500.0,0.00016986,2]
[334999228,1723716698140,-567.31,0.00016986,2]
[334999229,1723716698149,-1508.2,0.00016986,2]
[334999230,1723716698158,-919.55,0.00016986,2]
[334999231,1723716698169,-1025.91,0.00016986,2]
[334999232,1723716698186,-437.85864796,0.00016986,2]
[334999233,1723716698196,-569.43,0.00016986,2]
[334999234,1723716698206,-1601.78,0.00016986,2]
[334999235,1723716698216,-529.83,0.00016986,2]
[334999236,1723716698225,-1505.39,0.00016986,2]
[334999237,1723716698235,-500.0,0.00016986,2]
[334999238,1723716698244,-1190.58,0.00016986,2]
[334999239,1723716698254,-706.04,0.00016986,2]
[334999240,1723716698264,-2092.37,0.00016986,2]
[334999241,1723716698274,-570.66,0.00016986,2]
[334999242,1723716698283,-500.0,0.00016986,2]
[334999243,1723716698293,-861.8,0.00016986,2]
[334999244,1723716698302,-1608.08,0.00016986,2]
[334999245,1723716698312,-154.76012181,0.00017,2]
[334999246,1723716698322,-200.0,0.00017,2]
[334999247,1723716698331,-160.0,0.00017005,5]
[334999248,1723716698341,-160.0,0.00017079,6]
[334999249,1723716698351,-160.0,0.00017154,7]
[334999250,1723716698362,-465.0000012,0.00017178,2]
[334999251,1723716698371,-62380.32,0.000172,2]
[334999252,1723716698381,-160.0,0.00017228,8]
[334999253,1723716698391,-633.39,0.0001726,2]
[334999254,1723716698401,-500.0,0.0001726,2]
[334999255,1723716698411,-714.19,0.0001726,2]
[334999256,1723716698422,-978.47,0.0001726,2]
[334999257,1723716698431,-500.0,0.0001726,2]
[334999258,1723716698441,-500.0,0.0001726,2]
[334999259,1723716698450,-500.0,0.0001726,2]
[334999260,1723716698460,-727.05,0.0001726,2]
[334999261,1723716698469,-535.32291458,0.0001726,2]
[334999262,1723716698479,-500.0,0.0001726,2]
[334999263,1723716698489,-462.45621913,0.0001726,2]
[334999264,1723716698498,-697.47,0.0001726,2]
[334999265,1723716698508,-766.4,0.0001726,2]
[334999266,1723716698518,-500.0,0.0001726,2]
[334999267,1723716698529,-500.0,0.0001726,2]
[334999268,1723716698539,-500.0,0.0001726,2]
[334999269,1723716698548,-869.62,0.0001726,2]
[334999270,1723716698558,-500.0,0.0001726,2]
[334999271,1723716698570,-590.23,0.0001726,2]
[334999272,1723716698584,-500.0,0.0001726,2]
[334999273,1723716698593,-500.0,0.0001726,2]
[334999274,1723716698603,-500.0,0.0001726,2]
[334999275,1723716698614,-736.55,0.0001726,2]
[334999276,1723716698626,-500.0,0.0001726,2]
[334999277,1723716698638,-632.59,0.0001726,2]
[334999278,1723716698650,-739.83,0.0001726,2]
[334999279,1723716698660,-500.0,0.0001726,2]
[334999280,1723716698672,-618.54,0.0001726,2]
[334999281,1723716698683,-500.0,0.0001726,2]
[334999282,1723716698693,-500.0,0.0001726,2]
[334999283,1723716698703,-693.68,0.0001726,2]
[334999284,1723716698714,-586.18,0.0001726,2]
[334999285,1723716698725,-768.05,0.0001726,2]
[334999286,1723716698735,-500.0,0.0001726,2]
[334999287,1723716698747,-658.85,0.0001726,2]
[334999288,1723716698758,-500.0,0.0001726,2]
[334999289,1723716698769,-724.88,0.0001726,2]
[334999290,1723716698779,-733.53,0.0001726,2]
[334999291,1723716698789,-507.04,0.0001726,2]
[334999292,1723716698799,-500.0,0.0001726,2]
[334999293,1723716698810,-807.88,0.0001726,2]
[334999294,1723716698821,-200.0,0.0001726,2]
[334999295,1723716698832,-1080.27,0.0001726,2]
[334999296,1723716698842,-618.64,0.0001726,2]
[334999297,1723716698852,-500.0,0.0001726,2]
[334999298,1723716698863,-500.0,0.0001726,2]
[334999299,1723716698872,-500.0,0.0001726,2]
[334999300,1723716698882,-549.53,0.0001726,2]
[334999301,1723716698893,-761.97,0.0001726,2]
[334999302,1723716698902,-500.0,0.0001726,2]
[334999303,1723716698912,-500.0,0.0001726,2]
[334999304,1723716698924,-786.68,0.0001726,2]
[334999305,1723716698934,-582.93,0.0001726,2]
[334999306,1723716698945,-500.0,0.0001726,2]
[334999307,1723716698955,-500.0,0.0001726,2]
[334999308,1723716698965,-1007.52,0.0001726,2]
[334999309,1723716698975,-1023.58,0.0001726,2]
[334999310,1723716698985,-500.0,0.0001726,2]
[334999311,1723716698995,-500.0,0.0001726,2]
[334999312,1723716699007,-636.2,0.0001726,2]
[334999313,1723716699017,-500.0,0.0001726,2]
[334999314,1723716699026,-523.91,0.0001726,2]
[334999315,1723716699036,-525.78,0.0001726,2]
[334999316,1723716699045,-500.0,0.0001726,2]
[334999317,1723716699055,-500.0,0.0001726,2]
[334999318,1723716699066,-540.2,0.0001726,2]
[334999319,1723716699076,-500.0,0.0001726,2]
[334999320,1723716699085,-722.89,0.0001726,2]
[334999321,1723716699095,-701.26,0.0001726,2]
[334999322,1723716699105,-424.00283455,0.0001726,2]
[334999323,1723716699115,-523.63,0.0001726,2]
[334999324,1723716699125,-719.99,0.0001726,2]
[334999325,1723716699135,-705.57,0.0001726,2]
[334999326,1723716699145,-500.0,0.0001726,2]
[334999327,1723716699156,-500.0,0.0001726,2]
[334999328,1723716699166,-760.14,0.0001726,2]
[334999329,1723716699178,-500.0,0.0001726,2]
[334999330,1723716699188,-500.0,0.0001726,2]
[334999331,1723716699198,-500.0,0.0001726,2]
[334999332,1723716699209,-500.0,0.0001726,2]
[334999333,1723716699219,-500.0,0.0001726,2]
[334999334,1723716699230,-703.21,0.0001726,2]
[334999335,1723716699241,-739.05,0.0001726,2]
[334999336,1723716699252,-809.79,0.0001726,2]
[334999337,1723716699262,-500.0,0.0001726,2]
[334999338,1723716699272,-753.0,0.0001726,2]
[334999339,1723716699282,-768.32,0.0001726,2]
[334999340,1723716699292,-735.32,0.0001726,2]
[334999341,1723716699302,-500.0,0.0001726,2]
[334999342,1723716699311,-588.82,0.0001726,2]
[334999343,1723716699321,-188.59899701,0.0001726,2]
[334999344,1723716699331,-601.68,0.0001726,2]
[334999345,1723716699341,-500.0,0.0001726,2]
[334999346,1723716699351,-959.18,0.0001726,2]
[334999347,1723716699361,-500.0,0.0001726,2]
[334999348,1723716699371,-577.71,0.0001726,2]
[334999349,1723716699381,-500.0,0.0001726,2]
[334999350,1723716699391,-739.29,0.0001726,2]
[334999351,1723716699400,-863.69,0.0001726,2]
[334999352,1723716699411,-683.56,0.0001726,2]
[334999353,1723716699426,-1482.01,0.0001726,2]
[334999354,1723716699438,-500.0,0.0001726,2]
[334999355,1723716699449,-637.65,0.0001726,2]
[334999356,1723716699459,-752.65,0.0001726,2]
[334999357,1723716699469,-500.0,0.0001726,2]
[334999358,1723716699480,-500.0,0.0001726,2]
[334999359,1723716699489,-916.36,0.0001726,2]
[334999360,1723716699500,-905.05,0.0001726,2]
[334999361,1723716699510,-1137.78,0.0001726,2]
[334999362,1723716699520,-500.0,0.0001726,2]
[334999363,1723716699530,-581.08,0.0001726,2]
[334999364,1723716699539,-618.51,0.0001726,2]
[334999365,1723716699550,-696.9,0.0001726,2]
[334999366,1723716699561,-615.83,0.0001726,2]
[334999367,1723716699573,-1246.53,0.0001726,2]
[334999368,1723716699585,-1277.91,0.0001726,2]
[334999369,1723716699594,-500.0,0.0001726,2]
[334999370,1723716699603,-500.0,0.0001726,2]
[334999371,1723716699614,-822.29,0.0001726,2]
[334999372,1723716699624,-500.0,0.0001726,2]
[334999373,1723716699634,-801.88,0.0001726,2]
[334999374,1723716699643,-500.0,0.0001726,2]
[334999375,1723716699656,-536.68,0.0001726,2]
[334999376,1723716699666,-168.6,0.0001726,2]
[334999377,1723716699675,-500.0,0.0001726,2]
[334999378,1723716699685,-500.0,0.0001726,2]
[334999379,1723716699695,-3994.14,0.0001726,2]
[334999380,1723716699704,-546.03,0.0001726,2]
[334999381,1723716699714,-653.84,0.0001726,2]
[334999382,1723716699724,-855.41,0.0001726,2]
[334999383,1723716699734,-1698.32,0.0001726,2]
[334999384,1723716699745,-500.0,0.0001726,2]
[334999385,1723716699755,-865.22,0.0001726,2]
[334999386,1723716699764,-1671.37,0.0001726,2]
[334999387,1723716699774,-701.74,0.0001726,2]
[334999388,1723716699784,-1706.36,0.0001726,2]
[334999389,1723716699794,-556.69,0.0001726,2]
[334999390,1723716699803,-996.25,0.0001726,2]
[334999391,1723716699813,-500.0,0.0001726,2]
[334999392,1723716699822,-1331.16,0.0001726,2]
[334999393,1723716699832,-500.0,0.0001726,2]
[334999394,1723716699841,-521.14,0.0001726,2]
[334999395,1723716699851,-581.45,0.0001726,2]
[334999396,1723716699861,-1209.32,0.0001726,2]
[334999397,1723716699871,-1818.92,0.0001726,2]
[334999398,1723716699881,-500.0,0.0001726,2]
[334999399,1723716699891,-1100.1,0.0001726,2]
[334999400,1723716699900,-562.82,0.0001726,2]
[334999401,1723716699910,-2254.64,0.0001726,2]
[334999402,1723716699922,-1967.02,0.0001726,2]
[334999403,1723716699936,-988.01,0.0001726,2]
[334999404,1723716699946,-527.63,0.0001726,2]
[334999405,1723716699956,-927.26,0.0001726,2]
[334999406,1723716699966,-719.3,0.0001726,2]
[334999407,1723716699976,-572.43,0.0001726,2]
[334999408,1723716699985,-799.05,0.0001726,2]
[334999409,1723716699995,-581.88,0.0001726,2]
[334999410,1723716700005,-2164.18,0.0001726,2]
[334999411,1723716700016,-2006.92,0.0001726,2]
[334999412,1723716700026,-761.66,0.0001726,2]
[334999413,1723716700036,-2873.64,0.0001726,2]
[334999414,1723716700046,-500.0,0.0001726,2]
[334999415,1723716700056,-561.92,0.0001726,2]
[334999416,1723716700067,-7862.62,0.0001726,2]
[334999417,1723716700078,-688.24,0.0001726,2]
[334999418,1723716700088,-500.0,0.0001726,2]
[334999419,1723716700098,-712.1,0.0001726,2]
[334999420,1723716700108,-2181.37,0.0001726,2]
[334999421,1723716700118,-527.87,0.0001726,2]
[334999422,1723716700129,-500.0,0.0001726,2]
[334999423,1723716700139,-500.0,0.0001726,2]
[334999424,1723716700149,-500.0,0.0001726,2]
[334999425,1723716700158,-1909.95,0.0001726,2]
[334999426,1723716700168,-747.02,0.0001726,2]
[334999427,1723716700177,-1074.32,0.0001726,2]
[334999428,1723716700187,-1120.97,0.0001726,2]
[334999429,1723716700197,-844.17,0.0001726,2]
[334999430,1723716700207,-500.0,0.0001726,2]
[334999431,1723716700216,-1067.37,0.0001726,2]
[334999432,1723716700227,-562.8,0.0001726,2]
[334999433,1723716700237,-658.27,0.0001726,2]
[334999434,1723716700247,-500.0,0.0001726,2]
[334999435,1723716700257,-1035.86,0.0001726,2]
[334999436,1723716700267,-580.84,0.0001726,2]
[334999437,1723716700277,-1942.4,0.0001726,2]
[334999438,1723716700286,-860.49,0.0001726,2]
[334999439,1723716700295,-948.67,0.0001726,2]
[334999440,1723716700423,-500.0,0.0001726,2]
[334999441,1723716700433,-500.0,0.0001726,2]
[334999442,1723716700444,-4530.48,0.0001726,2]
[334999443,1723716700455,-1310.27,0.0001726,2]
[334999444,1723716700465,-615.48,0.0001726,2]
[334999445,1723716700475,-1631.5,0.0001726,2]
[334999446,1723716700487,-504.55,0.0001726,2]
[334999447,1723716700497,-8000.61,0.0001726,2]
[334999448,1723716700507,-700.72,0.0001726,2]
[334999449,1723716700516,-500.0,0.0001726,2]
[334999450,1723716700527,-1156.31,0.0001726,2]
[334999451,1723716700536,-1318.64,0.0001726,2]
[334999452,1723716700549,-777.45,0.0001726,2]
[334999453,1723716700559,-2060.47,0.0001726,2]
[334999454,1723716700569,-1553.53,0.0001726,2]
[334999455,1723716700584,-2404.91,0.0001726,2]
[334999456,1723716700595,-853.54,0.0001726,2]
[334999457,1723716700606,-4995.59,0.0001726,2]
[334999458,1723716700618,-1660.52,0.0001726,2]
[334999459,1723716700628,-671.77,0.0001726,2]
[334999460,1723716700638,-500.0,0.0001726,2]
[334999461,1723716700647,-567.31,0.0001726,2]
[334999462,1723716700659,-1508.2,0.0001726,2]
[334999463,1723716700671,-919.55,0.0001726,2]
[334999464,1723716700680,-1025.91,0.0001726,2]
[334999465,1723716700689,-569.43,0.0001726,2]
[334999466,1723716700699,-1601.78,0.0001726,2]
[334999467,1723716700708,-529.83,0.0001726,2]
[334999468,1723716700717,-1505.39,0.0001726,2]
[334999469,1723716700727,-500.0,0.0001726,2]
[334999470,1723716700737,-1190.58,0.0001726,2]
[334999471,1723716700746,-706.04,0.0001726,2]
[334999472,1723716700756,-2092.37,0.0001726,2]
[334999473,1723716700766,-570.66,0.0001726,2]
[334999474,1723716700775,-273.31261716,0.0001726,2]
[334999475,1723716700784,-861.8,0.0001726,2]
[334999476,1723716700794,-1608.08,0.0001726,2]
[334999477,1723716700803,-160.0,0.00017303,9]
[334999478,1723716700813,-160.0,0.00017378,10]
[334999479,1723716700824,-160.0,0.00017452,11]
[334999480,1723716700835,-5000.0,0.000175,2]
[334999481,1723716700845,-2199.43854734,0.000175,10]
[334999482,1723716700855,-160.0,0.00017527,12]
[334999483,1723716700864,-633.39,0.00017534,2]
[334999484,1723716700873,-500.0,0.00017534,2]
[334999485,1723716700883,-714.19,0.00017534,2]
[334999486,1723716700892,-978.47,0.00017534,2]
[334999487,1723716700902,-552.60938291,0.00017534,2]
[334999488,1723716700912,-500.0,0.00017534,2]
[334999489,1723716700922,-500.0,0.00017534,2]
[334999490,1723716700933,-727.05,0.00017534,2]
[334999491,1723716700942,-500.0,0.00017534,2]
[334999492,1723716700952,-697.47,0.00017534,2]
[334999493,1723716700961,-766.4,0.00017534,2]
[334999494,1723716700971,-500.0,0.00017534,2]
[334999495,1723716700980,-500.0,0.00017534,2]
[334999496,1723716700990,-500.0,0.00017534,2]
[334999497,1723716701001,-869.62,0.00017534,2]
[334999498,1723716701012,-500.0,0.00017534,2]
[334999499,1723716701021,-590.23,0.00017534,2]
[334999500,1723716701031,-500.0,0.00017534,2]
[334999501,1723716701040,-500.0,0.00017534,2]
[334999502,1723716701051,-500.0,0.00017534,2]
[334999503,1723716701061,-736.55,0.00017534,2]
[334999504,1723716701071,-500.0,0.00017534,2]
[334999505,1723716701080,-632.59,0.00017534,2]
[334999506,1723716701089,-739.83,0.00017534,2]
[334999507,1723716701099,-500.0,0.00017534,2]
[334999508,1723716701108,-618.54,0.00017534,2]
[334999509,1723716701120,-500.0,0.00017534,2]
[334999510,1723716701129,-500.0,0.00017534,2]
[334999511,1723716701139,-693.68,0.00017534,2]
[334999512,1723716701149,-586.18,0.00017534,2]
[334999513,1723716701158,-768.05,0.00017534,2]
[334999514,1723716701169,-500.0,0.00017534,2]
[334999515,1723716701178,-658.85,0.00017534,2]
[334999516,1723716701188,-500.0,0.00017534,2]
[334999517,1723716701198,-724.88,0.00017534,2]
[334999518,1723716701207,-733.53,0.00017534,2]
[334999519,1723716701217,-507.04,0.00017534,2]
[334999520,1723716701226,-500.0,0.00017534,2]
[334999521,1723716701236,-807.88,0.00017534,2]
[334999522,1723716701246,-200.0,0.00017534,2]
[334999523,1723716701255,-1080.27,0.00017534,2]
[334999524,1723716701265,-618.64,0.00017534,2]
[334999525,1723716701274,-500.0,0.00017534,2]
[334999526,1723716701284,-432.74924054,0.00017534,2]
[334999527,1723716701294,-500.0,0.00017534,2]
[334999528,1723716701303,-549.53,0.00017534,2]
[334999529,1723716701313,-761.97,0.00017534,2]
[334999530,1723716701323,-500.0,0.00017534,2]
[334999531,1723716701332,-500.0,0.00017534,2]
[334999532,1723716701341,-786.68,0.00017534,2]
[334999533,1723716701351,-582.93,0.00017534,2]
[334999534,1723716701361,-500.0,0.00017534,2]
[334999535,1723716701370,-500.0,0.00017534,2]
[334999536,1723716701380,-1007.52,0.00017534,2]
[334999537,1723716701390,-1023.58,0.00017534,2]
[334999538,1723716701399,-412.85340007,0.00017534,2]
[334999539,1723716701410,-500.0,0.00017534,2]
[334999540,1723716701419,-636.2,0.00017534,2]
[334999541,1723716701430,-365.60720031,0.00017534,2]
[334999542,1723716701442,-523.91,0.00017534,2]
[334999543,1723716701452,-525.78,0.00017534,2]
[334999544,1723716701462,-500.0,0.00017534,2]
[334999545,1723716701472,-500.0,0.00017534,2]
[334999546,1723716701482,-540.2,0.00017534,2]
[334999547,1723716701492,-500.0,0.00017534,2]
[334999548,1723716701502,-722.89,0.00017534,2]
[334999549,1723716701511,-701.26,0.00017534,2]
[334999550,1723716701522,-523.63,0.00017534,2]
[334999551,1723716701531,-719.99,0.00017534,2]
[334999552,1723716701541,-705.57,0.00017534,2]
[334999553,1723716701551,-500.0,0.00017534,2]
[334999554,1723716701562,-500.0,0.00017534,2]
[334999555,1723716701574,-760.14,0.00017534,2]
[334999556,1723716701587,-500.0,0.00017534,2]
[334999557,1723716701597,-500.0,0.00017534,2]
[334999558,1723716701608,-500.0,0.00017534,2]
[334999559,1723716701620,-500.0,0.00017534,2]
[334999560,1723716701632,-500.0,0.00017534,2]
[334999561,1723716701642,-703.21,0.00017534,2]
[334999562,1723716701655,-739.05,0.00017534,2]
[334999563,1723716701666,-809.79,0.00017534,2]
[334999564,1723716701677,-500.0,0.00017534,2]
[334999565,1723716701686,-753.0,0.00017534,2]
[334999566,1723716701696,-768.32,0.00017534,2]
[334999567,1723716701708,-735.32,0.00017534,2]
[334999568,1723716701718,-500.0,0.00017534,2]
[334999569,1723716701728,-588.82,0.00017534,2]
[334999570,1723716701737,-601.68,0.00017534,2]
[334999571,1723716701747,-500.0,0.00017534,2]
[334999572,1723716701757,-959.18,0.00017534,2]
[334999573,1723716701767,-500.0,0.00017534,2]
[334999574,1723716701777,-577.71,0.00017534,2]
[334999575,1723716701786,-500.0,0.00017534,2]
[334999576,1723716701796,-739.29,0.00017534,2]
[334999577,1723716701806,-863.69,0.00017534,2]
[334999578,1723716701816,-683.56,0.00017534,2]
[334999579,1723716701825,-1482.01,0.00017534,2]
[334999580,1723716701835,-500.0,0.00017534,2]
[334999581,1723716701845,-637.65,0.00017534,2]
[334999582,1723716701854,-752.65,0.00017534,2]
[334999583,1723716701864,-500.0,0.00017534,2]
[334999584,1723716701873,-500.0,0.00017534,2]
[334999585,1723716701883,-916.36,0.00017534,2]
[334999586,1723716701893,-905.05,0.00017534,2]
[334999587,1723716701903,-1137.78,0.00017534,2]
[334999588,1723716701913,-500.0,0.00017534,2]
[334999589,1723716701923,-581.08,0.00017534,2]
[334999590,1723716701933,-618.51,0.00017534,2]
[334999591,1723716701942,-696.9,0.00017534,2]
[334999592,1723716701952,-615.83,0.00017534,2]
[334999593,1723716701962,-1246.53,0.00017534,2]
[334999594,1723716701971,-1277.91,0.00017534,2]
[334999595,1723716701982,-500.0,0.00017534,2]
[334999596,1723716701992,-331.5882498,0.00017534,2]
[334999597,1723716702001,-822.29,0.00017534,2]
[334999598,1723716702011,-500.0,0.00017534,2]
[334999599,1723716702020,-801.88,0.00017534,2]
[334999600,1723716702030,-151.0,0.00017534,2]
[334999601,1723716702040,-160.38903979,0.00017534,2]
[334999602,1723716702051,-536.68,0.00017534,2]
[334999603,1723716702060,-168.6,0.00017534,2]
[334999604,1723716702071,-500.0,0.00017534,2]
[334999605,1723716702081,-500.0,0.00017534,2]
[334999606,1723716702091,-3994.14,0.00017534,2]
[334999607,1723716702100,-546.03,0.00017534,2]
[334999608,1723716702110,-653.84,0.00017534,2]
[334999609,1723716702119,-855.41,0.00017534,2]
[334999610,1723716702129,-1698.32,0.00017534,2]
[334999611,1723716702138,-500.0,0.00017534,2]
[334999612,1723716702148,-865.22,0.00017534,2]
[334999613,1723716702157,-1671.37,0.00017534,2]
[334999614,1723716702167,-701.74,0.00017534,2]
[334999615,1723716702177,-1706.36,0.00017534,2]
[334999616,1723716702187,-556.69,0.00017534,2]
[334999617,1723716702197,-996.25,0.00017534,2]
[334999618,1723716702207,-500.0,0.00017534,2]
[334999619,1723716702219,-1331.16,0.00017534,2]
[334999620,1723716702230,-500.0,0.00017534,2]
[334999621,1723716702240,-521.14,0.00017534,2]
[334999622,1723716702251,-581.45,0.00017534,2]
[334999623,1723716702262,-1209.32,0.00017534,2]
[334999624,1723716702272,-1818.92,0.00017534,2]
[334999625,1723716702281,-500.0,0.00017534,2]
[334999626,1723716702291,-1100.1,0.00017534,2]
[334999627,1723716702301,-562.82,0.00017534,2]
[334999628,1723716702310,-2254.64,0.00017534,2]
[334999629,1723716702320,-1967.02,0.00017534,2]
[334999630,1723716702330,-988.01,0.00017534,2]
[334999631,1723716702339,-527.63,0.00017534,2]
[334999632,1723716702349,-927.26,0.00017534,2]
[334999633,1723716702358,-719.3,0.00017534,2]
[334999634,1723716702367,-572.43,0.00017534,2]
[334999635,1723716702377,-799.05,0.00017534,2]
[334999636,1723716702387,-581.88,0.00017534,2]
[334999637,1723716702514,-2164.18,0.00017534,2]
[334999638,1723716702525,-2006.92,0.00017534,2]
[334999639,1723716702534,-761.66,0.00017534,2]
[334999640,1723716702544,-2873.64,0.00017534,2]
[334999641,1723716702554,-500.0,0.00017534,2]
[334999642,1723716702563,-561.92,0.00017534,2]